[Event "January 2 Early 2024"]
[Site "https://www.chess.com"]
[Date "2024.01.02"]
[Round "2"]
[White "Alonso Garcia, Rene Marcial"]
[Black "Lopusiewicz, Piotr"]
[Result "0-1"]
[Board "190"]
[TimeControl "180+1"]
[WhiteFideId "3500276"]
[BlackFideId "1116029"]
[WhiteElo "2292"]
[BlackElo "2511"]
[WhiteTeam "FID"]
[BlackTeam "POL"]
[WhiteClock "0:01:10"]
[BlackClock "0:00:22"]

1. d4 {[%clk 0:03:00]}  Nf6 {[%clk 0:02:59]} 2. c4 {[%clk 0:02:59]}  e6 {[%clk 0:02:59]} 3. Nf3 {[%clk 0:02:58]}  d5 {[%clk 0:02:59]} 4. Nc3 {[%clk 0:02:57]}  c5 {[%clk 0:02:58]} 5. e3 {[%clk 0:02:55]}  a6 {[%clk 0:02:57]} 6. dxc5 {[%clk 0:02:50]}  Bxc5 {[%clk 0:02:57]} 7. a3 {[%clk 0:02:50]}  dxc4 {[%clk 0:02:50]} 8. Qxd8+ {[%clk 0:02:48]}  Kxd8 {[%clk 0:02:50]} 9. Bxc4 {[%clk 0:02:48]}  b5 {[%clk 0:02:45]} 10. Be2 {[%clk 0:02:48]}  Bb7 {[%clk 0:02:41]} 11. b4 {[%clk 0:02:46]}  Bd6 {[%clk 0:02:34]} 12. Bb2 {[%clk 0:02:46]}  Nbd7 {[%clk 0:02:33]} 13. O-O-O {[%clk 0:02:44]}  Ke7 {[%clk 0:02:33]} 14. h3 {[%clk 0:02:39]}  Rac8 {[%clk 0:02:27]} 15. Kb1 {[%clk 0:02:36]}  Rhd8 {[%clk 0:02:26]} 16. Bd3 {[%clk 0:02:21]}  Nb6 {[%clk 0:02:20]} 17. Ne2 {[%clk 0:02:10]}  Nc4 {[%clk 0:02:17]} 18. Bxf6+ {[%clk 0:02:08]}  gxf6 {[%clk 0:02:14]} 19. Bxc4 {[%clk 0:02:08]}  bxc4 {[%clk 0:02:02]} 20. Ng3 {[%clk 0:02:06]}  f5 {[%clk 0:01:55]} 21. Kc2 {[%clk 0:02:04]}  c3 {[%clk 0:01:39]} 22. Rhg1 {[%clk 0:01:57]}  a5 {[%clk 0:01:36]} 23. bxa5 {[%clk 0:01:55]}  Bxa3 {[%clk 0:01:15]} 24. Rxd8 {[%clk 0:01:53]}  Kxd8 {[%clk 0:01:15]} 25. Rd1+ {[%clk 0:01:52]}  Ke7 {[%clk 0:01:14]} 26. Ne2 {[%clk 0:01:48]}  Be4+ {[%clk 0:01:10]} 27. Kb3 {[%clk 0:01:48]}  c2 {[%clk 0:01:10]} 28. Rf1 {[%clk 0:01:44]}  c1=Q {[%clk 0:01:03]} 29. Nxc1 {[%clk 0:01:43]}  Bxc1 {[%clk 0:00:41]} 30. Rg1 {[%clk 0:01:26]}  Rb8+ {[%clk 0:00:30]} 31. Ka2 {[%clk 0:01:19]}  Bd5+ {[%clk 0:00:26]} 32. Ka1 {[%clk 0:01:19]}  Bb2+ {[%clk 0:00:25]} 33. Kb1 {[%clk 0:01:18]}  Bc3+ {[%clk 0:00:22]} 34. Kc2 {[%clk 0:01:18]}  Bxa5 {[%clk 0:00:22]} 35. Nd4 {[%clk 0:01:10]}  Be4+ {[%clk 0:00:22]} 0-1

[Event "January 2 Early 2024"]
[Site "https://www.chess.com"]
[Date "2024.01.02"]
[Round "2"]
[White "Filippova, Margarita"]
[Black "Tikhonov, Viacheslav"]
[Result "1-0"]
[Board "192"]
[TimeControl "180+1"]
[WhiteFideId "34199680"]
[BlackFideId "44196407"]
[WhiteElo "2290"]
[BlackElo "2510"]
[WhiteTeam "RUS"]
[BlackTeam "RUS"]
[WhiteClock "0:01:35"]
[BlackClock "0:00:04"]

1. e4 {[%clk 0:03:00]}  c5 {[%clk 0:02:59]} 2. Nf3 {[%clk 0:03:00]}  g6 {[%clk 0:02:58]} 3. c3 {[%clk 0:03:00]}  Bg7 {[%clk 0:02:57]} 4. d4 {[%clk 0:03:00]}  cxd4 {[%clk 0:02:58]} 5. cxd4 {[%clk 0:03:01]}  d5 {[%clk 0:02:59]} 6. e5 {[%clk 0:03:01]}  a6 {[%clk 0:02:59]} 7. h3 {[%clk 0:03:02]}  Nc6 {[%clk 0:03:00]} 8. a3 {[%clk 0:02:57]}  f6 {[%clk 0:02:55]} 9. Nc3 {[%clk 0:02:57]}  Nh6 {[%clk 0:02:39]} 10. Bxh6 {[%clk 0:02:53]}  Bxh6 {[%clk 0:02:39]} 11. Bd3 {[%clk 0:02:53]}  O-O {[%clk 0:02:34]} 12. Qc2 {[%clk 0:02:47]}  fxe5 {[%clk 0:02:15]} 13. dxe5 {[%clk 0:02:48]}  Rxf3 {[%clk 0:02:04]} 14. gxf3 {[%clk 0:02:43]}  Nxe5 {[%clk 0:02:04]} 15. Qe2 {[%clk 0:02:26]}  Qd6 {[%clk 0:01:33]} 16. Rd1 {[%clk 0:02:16]}  Be6 {[%clk 0:01:13]} 17. h4 {[%clk 0:02:11]}  Rf8 {[%clk 0:01:09]} 18. Be4 {[%clk 0:02:08]}  d4 {[%clk 0:00:23]} 19. h5 {[%clk 0:02:03]}  Kg7 {[%clk 0:00:17]} 20. hxg6 {[%clk 0:02:02]}  hxg6 {[%clk 0:00:18]} 21. Rxh6 {[%clk 0:01:53]}  Kxh6 {[%clk 0:00:18]} 22. Qd2+ {[%clk 0:01:50]}  Kg7 {[%clk 0:00:16]} 23. Qxd4 {[%clk 0:01:50]}  Qxd4 {[%clk 0:00:12]} 24. Rxd4 {[%clk 0:01:51]}  Nxf3+ {[%clk 0:00:08]} 25. Bxf3 {[%clk 0:01:51]}  Rxf3 {[%clk 0:00:09]} 26. Ke2 {[%clk 0:01:51]}  Rf8 {[%clk 0:00:06]} 27. Na4 {[%clk 0:01:43]}  Rc8 {[%clk 0:00:05]} 28. b4 {[%clk 0:01:41]}  Rc2+ {[%clk 0:00:04]} 29. Ke3 {[%clk 0:01:38]}  Ra2 {[%clk 0:00:03]} 30. Rd3 {[%clk 0:01:38]}  Bf5 {[%clk 0:00:02]} 31. Rc3 {[%clk 0:01:37]}  b5 {[%clk 0:00:02]} 32. Nc5 {[%clk 0:01:37]}  Be6 {[%clk 0:00:01]} 33. Nxe6+ {[%clk 0:01:37]}  Kf6 {[%clk 0:00:02]} 34. Nc5 {[%clk 0:01:37]}  g5 {[%clk 0:00:02]} 35. Nxa6 {[%clk 0:01:36]}  Ra1 {[%clk 0:00:02]} 36. Nc5 {[%clk 0:01:36]}  g4 {[%clk 0:00:02]} 37. Ne4+ {[%clk 0:01:34]}  Ke5 {[%clk 0:00:01]} 38. Ng3 {[%clk 0:01:35]}  Kd5 {[%clk 0:00:01]} 39. Rc5+ {[%clk 0:01:35]}  Kd6 {[%clk 0:00:02]} 40. Rxb5 {[%clk 0:01:35]}  Rxa3+ {[%clk 0:00:02]} 41. Kf4 {[%clk 0:01:35]}  Rf3+ {[%clk 0:00:03]} 42. Kxg4 {[%clk 0:01:35]}  Rxf2 {[%clk 0:00:04]} 43. Ne4+ {[%clk 0:01:35]}  Kc6 {[%clk 0:00:04]} 44. Rc5+ {[%clk 0:01:34]}  Kb6 {[%clk 0:00:04]} 45. Nxf2 {[%clk 0:01:35]} 1-0

[Event "January 2 Early 2024"]
[Site "https://www.chess.com"]
[Date "2024.01.02"]
[Round "2"]
[White "Pinero Rodriguez, Carlos Jose"]
[Black "SkinnyPuppy8"]
[Result "1-0"]
[Board "194"]
[TimeControl "180+1"]
[WhiteFideId "3901726"]
[WhiteElo "2504"]
[BlackElo "2287"]
[WhiteTeam "VEN"]
[WhiteClock "0:00:50"]
[BlackClock "0:00:07"]

1. e4 {[%clk 0:03:00]}  d5 {[%clk 0:02:59]} 2. exd5 {[%clk 0:02:59]}  Nf6 {[%clk 0:03:00]} 3. d4 {[%clk 0:02:58]}  Bg4 {[%clk 0:03:00]} 4. f3 {[%clk 0:02:52]}  Bf5 {[%clk 0:03:00]} 5. c4 {[%clk 0:02:48]}  e6 {[%clk 0:03:00]} 6. dxe6 {[%clk 0:02:46]}  Nc6 {[%clk 0:03:00]} 7. Be3 {[%clk 0:02:41]}  Bb4+ {[%clk 0:02:58]} 8. Nc3 {[%clk 0:02:37]}  Bxc3+ {[%clk 0:02:59]} 9. bxc3 {[%clk 0:02:36]}  fxe6 {[%clk 0:02:58]} 10. Ne2 {[%clk 0:02:29]}  O-O {[%clk 0:02:52]} 11. Ng3 {[%clk 0:02:27]}  Qe8 {[%clk 0:02:43]} 12. Be2 {[%clk 0:02:13]}  Rd8 {[%clk 0:02:39]} 13. O-O {[%clk 0:02:10]}  Qg6 {[%clk 0:02:33]} 14. Nxf5 {[%clk 0:02:02]}  exf5 {[%clk 0:02:31]} 15. Bd3 {[%clk 0:02:00]}  Rfe8 {[%clk 0:01:41]} 16. Qd2 {[%clk 0:01:56]}  Qf7 {[%clk 0:01:38]} 17. Bf2 {[%clk 0:01:40]}  Na5 {[%clk 0:01:34]} 18. c5 {[%clk 0:01:39]}  Nc4 {[%clk 0:01:27]} 19. Qc1 {[%clk 0:01:39]}  b5 {[%clk 0:01:09]} 20. a4 {[%clk 0:01:33]}  a6 {[%clk 0:01:09]} 21. axb5 {[%clk 0:01:32]}  axb5 {[%clk 0:01:10]} 22. Bxf5 {[%clk 0:01:15]}  Nd5 {[%clk 0:01:07]} 23. Be4 {[%clk 0:01:16]}  c6 {[%clk 0:00:55]} 24. Ra6 {[%clk 0:01:11]}  Qb7 {[%clk 0:00:39]} 25. Ra2 {[%clk 0:01:10]}  g6 {[%clk 0:00:33]} 26. Re1 {[%clk 0:01:09]}  Kg7 {[%clk 0:00:32]} 27. Bh4 {[%clk 0:01:08]}  Rd7 {[%clk 0:00:27]} 28. Bxd5 {[%clk 0:01:08]}  Rxe1+ {[%clk 0:00:23]} 29. Qxe1 {[%clk 0:01:09]}  Rxd5 {[%clk 0:00:20]} 30. Re2 {[%clk 0:01:01]}  Rd7 {[%clk 0:00:20]} 31. Re6 {[%clk 0:00:58]}  Rf7 {[%clk 0:00:19]} 32. Qe4 {[%clk 0:00:56]}  b4 {[%clk 0:00:19]} 33. cxb4 {[%clk 0:00:53]}  Qxb4 {[%clk 0:00:18]} 34. Rxc6 {[%clk 0:00:51]}  Nd2 {[%clk 0:00:16]} 35. Qe5+ {[%clk 0:00:49]}  Kh6 {[%clk 0:00:07]} 36. Bg5+ {[%clk 0:00:49]}  Kh5 {[%clk 0:00:07]} 37. Bf6+ {[%clk 0:00:50]}  Kh6 {[%clk 0:00:07]} 38. Qg5# {[%clk 0:00:50]} 1-0

[Event "January 2 Early 2024"]
[Site "https://www.chess.com"]
[Date "2024.01.02"]
[Round "2"]
[White "Bressy, Theo"]
[Black "Coelho, Ramyres Santana"]
[Result "0-1"]
[Board "198"]
[TimeControl "180+1"]
[WhiteFideId "26022842"]
[BlackFideId "2120690"]
[WhiteElo "2499"]
[BlackElo "2280"]
[WhiteTeam "FRA"]
[BlackTeam "BRA"]
[WhiteClock "0:00:16"]
[BlackClock "0:00:42"]

1. e4 {[%clk 0:03:00]}  c5 {[%clk 0:02:59]} 2. a3 {[%clk 0:03:00]}  Nc6 {[%clk 0:02:58]} 3. b4 {[%clk 0:03:01]}  cxb4 {[%clk 0:02:58]} 4. axb4 {[%clk 0:03:02]}  a6 {[%clk 0:02:58]} 5. b5 {[%clk 0:03:02]}  Nb8 {[%clk 0:02:57]} 6. Nf3 {[%clk 0:03:02]}  d6 {[%clk 0:02:57]} 7. d4 {[%clk 0:03:02]}  e6 {[%clk 0:02:57]} 8. Bd3 {[%clk 0:03:02]}  Nf6 {[%clk 0:02:56]} 9. O-O {[%clk 0:03:03]}  Be7 {[%clk 0:02:56]} 10. Nc3 {[%clk 0:02:56]}  O-O {[%clk 0:02:55]} 11. Ba3 {[%clk 0:02:49]}  a5 {[%clk 0:02:53]} 12. Qe2 {[%clk 0:02:32]}  b6 {[%clk 0:02:52]} 13. e5 {[%clk 0:02:30]}  Nd5 {[%clk 0:02:48]} 14. Nxd5 {[%clk 0:02:27]}  exd5 {[%clk 0:02:49]} 15. exd6 {[%clk 0:02:18]}  Bxd6 {[%clk 0:02:50]} 16. Bxd6 {[%clk 0:02:19]}  Qxd6 {[%clk 0:02:50]} 17. Ne5 {[%clk 0:02:12]}  Nd7 {[%clk 0:02:39]} 18. Nc6 {[%clk 0:01:54]}  Nf6 {[%clk 0:02:24]} 19. Rfe1 {[%clk 0:01:49]}  Bd7 {[%clk 0:02:19]} 20. Qe5 {[%clk 0:01:48]}  Qxe5 {[%clk 0:02:14]} 21. dxe5 {[%clk 0:01:49]}  Bxc6 {[%clk 0:01:58]} 22. exf6 {[%clk 0:01:34]}  Bd7 {[%clk 0:01:54]} 23. Re7 {[%clk 0:01:34]}  Be6 {[%clk 0:01:53]} 24. f4 {[%clk 0:01:21]}  Rfe8 {[%clk 0:01:36]} 25. Rb7 {[%clk 0:01:15]}  Rab8 {[%clk 0:01:32]} 26. Rxb8 {[%clk 0:00:48]}  Rxb8 {[%clk 0:01:33]} 27. fxg7 {[%clk 0:00:49]}  Kxg7 {[%clk 0:01:32]} 28. Kf2 {[%clk 0:00:50]}  Rc8 {[%clk 0:01:30]} 29. Ke3 {[%clk 0:00:51]}  Rc3 {[%clk 0:01:27]} 30. Kd4 {[%clk 0:00:51]}  Rc5 {[%clk 0:01:27]} 31. g3 {[%clk 0:00:44]}  Bd7 {[%clk 0:01:25]} 32. c4 {[%clk 0:00:45]}  dxc4 {[%clk 0:01:23]} 33. Bxc4 {[%clk 0:00:46]}  Bxb5 {[%clk 0:01:21]} 34. Bd5 {[%clk 0:00:46]}  Rc2 {[%clk 0:01:11]} 35. Rb1 {[%clk 0:00:42]}  Rd2+ {[%clk 0:01:10]} 36. Ke5 {[%clk 0:00:37]}  f6+ {[%clk 0:01:05]} 37. Ke6 {[%clk 0:00:37]}  Bd7+ {[%clk 0:00:55]} 38. Kxd7 {[%clk 0:00:29]}  Rxd5+ {[%clk 0:00:55]} 39. Kc6 {[%clk 0:00:29]}  Rd2 {[%clk 0:00:51]} 40. Kxb6 {[%clk 0:00:29]}  Rxh2 {[%clk 0:00:50]} 41. Kxa5 {[%clk 0:00:28]}  Rh3 {[%clk 0:00:48]} 42. Rg1 {[%clk 0:00:28]}  Kg6 {[%clk 0:00:47]} 43. Kb5 {[%clk 0:00:20]}  Kf5 {[%clk 0:00:47]} 44. Kc5 {[%clk 0:00:20]}  Kg4 {[%clk 0:00:47]} 45. Kd5 {[%clk 0:00:20]}  Rxg3 {[%clk 0:00:47]} 46. Rh1 {[%clk 0:00:21]}  h5 {[%clk 0:00:46]} 47. Ke4 {[%clk 0:00:20]}  f5+ {[%clk 0:00:45]} 48. Ke5 {[%clk 0:00:20]}  Re3+ {[%clk 0:00:46]} 49. Kf6 {[%clk 0:00:21]}  h4 {[%clk 0:00:43]} 50. Kg6 {[%clk 0:00:16]}  h3 {[%clk 0:00:42]} 0-1

[Event "January 2 Early 2024"]
[Site "https://www.chess.com"]
[Date "2024.01.02"]
[Round "2"]
[White "Cardozo Munar, Carlos Eduardo"]
[Black "Sidletskyi, Ivan"]
[Result "1-0"]
[Board "199"]
[TimeControl "180+1"]
[WhiteFideId "4409477"]
[BlackFideId "14156024"]
[WhiteElo "2280"]
[BlackElo "2499"]
[WhiteTeam "COL"]
[BlackTeam "UKR"]
[WhiteClock "0:00:24"]
[BlackClock "0:00:00"]

1. d4 {[%clk 0:02:59]}  Nf6 {[%clk 0:02:59]} 2. Bg5 {[%clk 0:02:59]}  d5 {[%clk 0:02:59]} 3. Bxf6 {[%clk 0:02:57]}  gxf6 {[%clk 0:02:59]} 4. g3 {[%clk 0:02:57]}  c5 {[%clk 0:02:58]} 5. Bg2 {[%clk 0:02:57]}  Nc6 {[%clk 0:02:49]} 6. dxc5 {[%clk 0:02:56]}  e6 {[%clk 0:02:43]} 7. e4 {[%clk 0:02:52]}  d4 {[%clk 0:02:31]} 8. Nf3 {[%clk 0:02:43]}  Bxc5 {[%clk 0:02:29]} 9. O-O {[%clk 0:02:43]}  e5 {[%clk 0:02:21]} 10. c3 {[%clk 0:02:44]}  Be6 {[%clk 0:01:59]} 11. cxd4 {[%clk 0:02:43]}  Nxd4 {[%clk 0:01:58]} 12. Nc3 {[%clk 0:02:42]}  Qd7 {[%clk 0:01:47]} 13. a3 {[%clk 0:02:39]}  Rd8 {[%clk 0:01:40]} 14. b4 {[%clk 0:02:19]}  Bb6 {[%clk 0:01:38]} 15. Rc1 {[%clk 0:02:12]}  O-O {[%clk 0:01:15]} 16. Nd5 {[%clk 0:02:06]}  Bxd5 {[%clk 0:01:11]} 17. exd5 {[%clk 0:02:07]}  Qxd5 {[%clk 0:01:02]} 18. Nxd4 {[%clk 0:02:05]}  Qxd4 {[%clk 0:01:02]} 19. Qxd4 {[%clk 0:02:06]}  Rxd4 {[%clk 0:00:44]} 20. Bxb7 {[%clk 0:02:04]}  Rd2 {[%clk 0:00:45]} 21. a4 {[%clk 0:02:00]}  Rb8 {[%clk 0:00:36]} 22. Rc8+ {[%clk 0:01:56]}  Rxc8 {[%clk 0:00:36]} 23. Bxc8 {[%clk 0:01:57]}  Rb2 {[%clk 0:00:33]} 24. a5 {[%clk 0:01:36]}  Bd4 {[%clk 0:00:31]} 25. a6 {[%clk 0:01:36]}  Rxb4 {[%clk 0:00:31]} 26. Kg2 {[%clk 0:01:36]}  Rb2 {[%clk 0:00:29]} 27. h4 {[%clk 0:01:36]}  Kf8 {[%clk 0:00:29]} 28. Bb7 {[%clk 0:01:36]}  Ke7 {[%clk 0:00:29]} 29. g4 {[%clk 0:01:31]}  Ra2 {[%clk 0:00:25]} 30. Kg3 {[%clk 0:01:31]}  e4 {[%clk 0:00:22]} 31. Bxe4 {[%clk 0:01:30]}  Rxa6 {[%clk 0:00:22]} 32. Bxh7 {[%clk 0:01:30]}  Ra3+ {[%clk 0:00:22]} 33. f3 {[%clk 0:01:30]}  Be5+ {[%clk 0:00:22]} 34. Kg2 {[%clk 0:01:27]}  a5 {[%clk 0:00:20]} 35. Be4 {[%clk 0:01:27]}  Ra2+ {[%clk 0:00:20]} 36. Rf2 {[%clk 0:01:27]}  Ra3 {[%clk 0:00:19]} 37. h5 {[%clk 0:01:24]}  Rb3 {[%clk 0:00:16]} 38. Ra2 {[%clk 0:01:21]}  Rb5 {[%clk 0:00:15]} 39. h6 {[%clk 0:01:21]}  Bc3 {[%clk 0:00:15]} 40. h7 {[%clk 0:01:20]}  Rb8 {[%clk 0:00:15]} 41. Rc2 {[%clk 0:01:18]}  Be5 {[%clk 0:00:16]} 42. Rc5 {[%clk 0:01:14]}  a4 {[%clk 0:00:13]} 43. Ra5 {[%clk 0:01:14]}  Rb2+ {[%clk 0:00:09]} 44. Kf1 {[%clk 0:01:13]}  Rh2 {[%clk 0:00:08]} 45. Rxa4 {[%clk 0:01:11]}  Kd6 {[%clk 0:00:06]} 46. Ra7 {[%clk 0:01:06]}  Kc5 {[%clk 0:00:05]} 47. Ra8 {[%clk 0:00:57]}  f5 {[%clk 0:00:05]} 48. Bxf5 {[%clk 0:00:52]}  Kd4 {[%clk 0:00:05]} 49. Be4 {[%clk 0:00:47]}  Ke3 {[%clk 0:00:05]} 50. Ra3+ {[%clk 0:00:47]}  Kf4 {[%clk 0:00:06]} 51. Ra7 {[%clk 0:00:39]}  Bd4 {[%clk 0:00:01]} 52. Rxf7+ {[%clk 0:00:39]}  Kg3 {[%clk 0:00:02]} 53. g5 {[%clk 0:00:34]}  Bc3 {[%clk 0:00:00]} 54. h8=Q {[%clk 0:00:24]} 1-0

[Event "January 2 Early 2024"]
[Site "https://www.chess.com"]
[Date "2024.01.02"]
[Round "2"]
[White "Garcia Almaguer, Juan Manuel"]
[Black "Monpeurt, Cyrielle"]
[Result "0-1"]
[Board "202"]
[TimeControl "180+1"]
[WhiteFideId "5110491"]
[BlackFideId "677400"]
[WhiteElo "2495"]
[BlackElo "2274"]
[WhiteTeam "MEX"]
[BlackTeam "FRA"]
[WhiteClock "0:00:09"]
[BlackClock "0:00:09"]

1. e4 {[%clk 0:03:00]}  d5 {[%clk 0:02:58]} 2. exd5 {[%clk 0:03:00]}  Qxd5 {[%clk 0:02:59]} 3. Nc3 {[%clk 0:02:58]}  Qd6 {[%clk 0:02:59]} 4. Bc4 {[%clk 0:02:57]}  Nf6 {[%clk 0:02:59]} 5. d3 {[%clk 0:02:58]}  Bg4 {[%clk 0:02:58]} 6. f3 {[%clk 0:02:52]}  Bh5 {[%clk 0:02:56]} 7. Bg5 {[%clk 0:02:50]}  e6 {[%clk 0:02:48]} 8. Qd2 {[%clk 0:02:49]}  Nc6 {[%clk 0:02:32]} 9. Nge2 {[%clk 0:02:40]}  O-O-O {[%clk 0:02:26]} 10. O-O-O {[%clk 0:02:36]}  Be7 {[%clk 0:02:19]} 11. h4 {[%clk 0:02:31]}  h6 {[%clk 0:02:16]} 12. Bf4 {[%clk 0:02:31]}  e5 {[%clk 0:02:15]} 13. Bh2 {[%clk 0:02:32]}  a6 {[%clk 0:02:05]} 14. g4 {[%clk 0:02:25]}  Bg6 {[%clk 0:02:05]} 15. Ng3 {[%clk 0:02:23]}  Nd4 {[%clk 0:02:00]} 16. Qf2 {[%clk 0:02:13]}  Qb6 {[%clk 0:01:50]} 17. g5 {[%clk 0:02:02]}  hxg5 {[%clk 0:01:49]} 18. hxg5 {[%clk 0:02:03]}  Nb3+ {[%clk 0:01:40]} 19. Bxb3 {[%clk 0:01:53]}  Qxf2 {[%clk 0:01:40]} 20. gxf6 {[%clk 0:01:53]}  Bxf6 {[%clk 0:01:38]} 21. Nge4 {[%clk 0:01:47]}  Qxf3 {[%clk 0:01:20]} 22. Rdf1 {[%clk 0:01:24]}  Qg2 {[%clk 0:01:14]} 23. Rfg1 {[%clk 0:01:20]}  Qf3 {[%clk 0:01:04]} 24. Rf1 {[%clk 0:01:19]}  Qe3+ {[%clk 0:01:04]} 25. Kb1 {[%clk 0:01:19]}  Bxe4 {[%clk 0:01:04]} 26. Nxe4 {[%clk 0:01:19]}  Kb8 {[%clk 0:00:57]} 27. Bxf7 {[%clk 0:01:15]}  Rdf8 {[%clk 0:00:56]} 28. Be6 {[%clk 0:01:09]}  Be7 {[%clk 0:00:55]} 29. Rd1 {[%clk 0:01:05]}  Qe2 {[%clk 0:00:52]} 30. Nc3 {[%clk 0:00:58]}  Qg2 {[%clk 0:00:50]} 31. Bd5 {[%clk 0:00:58]}  Qf2 {[%clk 0:00:48]} 32. Bxe5 {[%clk 0:00:45]}  Rxh1 {[%clk 0:00:47]} 33. Bxh1 {[%clk 0:00:42]}  Bd6 {[%clk 0:00:43]} 34. Bxg7 {[%clk 0:00:33]}  Rg8 {[%clk 0:00:43]} 35. Bh6 {[%clk 0:00:31]}  Rg1 {[%clk 0:00:42]} 36. Be4 {[%clk 0:00:30]}  Rxd1+ {[%clk 0:00:40]} 37. Nxd1 {[%clk 0:00:31]}  Qe1 {[%clk 0:00:37]} 38. Kc1 {[%clk 0:00:31]}  b5 {[%clk 0:00:36]} 39. Bd2 {[%clk 0:00:31]}  Qf1 {[%clk 0:00:35]} 40. c3 {[%clk 0:00:31]}  Bf4 {[%clk 0:00:34]} 41. Bxf4 {[%clk 0:00:28]}  Qxf4+ {[%clk 0:00:35]} 42. Kc2 {[%clk 0:00:29]}  Qh2+ {[%clk 0:00:35]} 43. Kc1 {[%clk 0:00:29]}  Qe2 {[%clk 0:00:34]} 44. a3 {[%clk 0:00:28]}  c5 {[%clk 0:00:34]} 45. Bf5 {[%clk 0:00:25]}  Kc7 {[%clk 0:00:34]} 46. Be4 {[%clk 0:00:25]}  Kd6 {[%clk 0:00:34]} 47. Bh7 {[%clk 0:00:25]}  Qf1 {[%clk 0:00:33]} 48. Be4 {[%clk 0:00:24]}  Qe2 {[%clk 0:00:33]} 49. Bh7 {[%clk 0:00:25]}  c4 {[%clk 0:00:34]} 50. dxc4 {[%clk 0:00:25]}  bxc4 {[%clk 0:00:34]} 51. Bc2 {[%clk 0:00:25]}  Kc5 {[%clk 0:00:33]} 52. b4+ {[%clk 0:00:24]}  cxb3 {[%clk 0:00:33]} 53. Bxb3 {[%clk 0:00:24]}  a5 {[%clk 0:00:32]} 54. a4 {[%clk 0:00:24]}  Qf1 {[%clk 0:00:31]} 55. Kd2 {[%clk 0:00:24]}  Qg2+ {[%clk 0:00:30]} 56. Kc1 {[%clk 0:00:25]}  Qg5+ {[%clk 0:00:30]} 57. Kc2 {[%clk 0:00:25]}  Qf4 {[%clk 0:00:30]} 58. Kd3 {[%clk 0:00:23]}  Qf3+ {[%clk 0:00:28]} 59. Kc2 {[%clk 0:00:23]}  Qe2+ {[%clk 0:00:29]} 60. Kc1 {[%clk 0:00:24]}  Qd3 {[%clk 0:00:26]} 61. Kb2 {[%clk 0:00:21]}  Qd2+ {[%clk 0:00:26]} 62. Kb1 {[%clk 0:00:22]}  Kd6 {[%clk 0:00:24]} 63. Bc2 {[%clk 0:00:20]}  Ke5 {[%clk 0:00:23]} 64. Bb3 {[%clk 0:00:20]}  Kf4 {[%clk 0:00:23]} 65. Bc2 {[%clk 0:00:20]}  Kf3 {[%clk 0:00:23]} 66. Bb3 {[%clk 0:00:18]}  Ke2 {[%clk 0:00:23]} 67. Bc2 {[%clk 0:00:19]}  Qd7 {[%clk 0:00:23]} 68. Kb2 {[%clk 0:00:19]}  Qb7+ {[%clk 0:00:22]} 69. Bb3 {[%clk 0:00:19]}  Kd2 {[%clk 0:00:21]} 70. Ka3 {[%clk 0:00:19]}  Kc1 {[%clk 0:00:20]} 71. Ka2 {[%clk 0:00:16]}  Qg2+ {[%clk 0:00:19]} 72. Ka3 {[%clk 0:00:17]}  Qd2 {[%clk 0:00:18]} 73. c4 {[%clk 0:00:15]}  Qd3 {[%clk 0:00:17]} 74. Ka2 {[%clk 0:00:15]}  Qf3 {[%clk 0:00:15]} 75. Ka3 {[%clk 0:00:14]}  Kb1 {[%clk 0:00:14]} 76. c5 {[%clk 0:00:11]}  Qc6 {[%clk 0:00:12]} 77. Nc3+ {[%clk 0:00:11]}  Kc1 {[%clk 0:00:13]} 78. Ne2+ {[%clk 0:00:11]}  Kd2 {[%clk 0:00:12]} 79. Nf4 {[%clk 0:00:10]}  Qxc5+ {[%clk 0:00:13]} 80. Ka2 {[%clk 0:00:11]}  Qe3 {[%clk 0:00:12]} 81. Nd5 {[%clk 0:00:11]}  Qd4 {[%clk 0:00:11]} 82. Ka3 {[%clk 0:00:12]}  Kc1 {[%clk 0:00:10]} 83. Nc3 {[%clk 0:00:08]}  Qxc3 {[%clk 0:00:09]} 84. Ka2 {[%clk 0:00:09]}  Qb2# {[%clk 0:00:09]} 0-1

[Event "January 2 Early 2024"]
[Site "https://www.chess.com"]
[Date "2024.01.02"]
[Round "2"]
[White "Deveci, Huseyin Said"]
[Black "Korpics, Zsolt"]
[Result "1-0"]
[Board "203"]
[TimeControl "180+1"]
[WhiteFideId "26322455"]
[BlackFideId "705241"]
[WhiteElo "2274"]
[BlackElo "2495"]
[WhiteTeam "TUR"]
[BlackTeam "HUN"]
[WhiteClock "0:00:19"]
[BlackClock "0:00:06"]

1. e4 {[%clk 0:03:00]}  c5 {[%clk 0:03:00]} 2. Nf3 {[%clk 0:03:01]}  e6 {[%clk 0:03:00]} 3. d4 {[%clk 0:03:01]}  cxd4 {[%clk 0:03:01]} 4. Nxd4 {[%clk 0:03:02]}  Nc6 {[%clk 0:03:02]} 5. Nxc6 {[%clk 0:03:01]}  bxc6 {[%clk 0:03:02]} 6. Bd3 {[%clk 0:03:01]}  Nf6 {[%clk 0:02:58]} 7. O-O {[%clk 0:03:01]}  e5 {[%clk 0:02:50]} 8. f4 {[%clk 0:02:46]}  Bc5+ {[%clk 0:02:41]} 9. Kh1 {[%clk 0:02:43]}  d6 {[%clk 0:02:41]} 10. fxe5 {[%clk 0:02:41]}  dxe5 {[%clk 0:02:41]} 11. Bg5 {[%clk 0:02:41]}  Be7 {[%clk 0:02:26]} 12. Nd2 {[%clk 0:02:40]}  h6 {[%clk 0:02:25]} 13. Bh4 {[%clk 0:02:31]}  O-O {[%clk 0:01:52]} 14. Nc4 {[%clk 0:02:29]}  Nd7 {[%clk 0:01:30]} 15. Bxe7 {[%clk 0:02:22]}  Qxe7 {[%clk 0:01:31]} 16. Qh5 {[%clk 0:02:16]}  Ba6 {[%clk 0:01:22]} 17. Rad1 {[%clk 0:01:21]}  Bxc4 {[%clk 0:01:19]} 18. Bxc4 {[%clk 0:01:22]}  Nf6 {[%clk 0:01:19]} 19. Qf5 {[%clk 0:01:22]}  Rfd8 {[%clk 0:01:04]} 20. a3 {[%clk 0:01:05]}  Qc5 {[%clk 0:00:56]} 21. Bb3 {[%clk 0:00:59]}  Rd6 {[%clk 0:00:52]} 22. Bxf7+ {[%clk 0:00:19]}  Kxf7 {[%clk 0:00:47]} 23. b4 {[%clk 0:00:20]}  Qxc2 {[%clk 0:00:04]} 24. Rxd6 {[%clk 0:00:19]}  Kg8 {[%clk 0:00:05]} 25. Rxf6 {[%clk 0:00:18]}  gxf6 {[%clk 0:00:05]} 26. Qg6+ {[%clk 0:00:18]}  Kh8 {[%clk 0:00:05]} 27. Qxh6+ {[%clk 0:00:19]}  Kg8 {[%clk 0:00:06]} 28. Qg6+ {[%clk 0:00:20]}  Kh8 {[%clk 0:00:06]} 29. Qxf6+ {[%clk 0:00:20]}  Kg8 {[%clk 0:00:06]} 30. Qg6+ {[%clk 0:00:19]}  Kh8 {[%clk 0:00:06]} 31. h3 {[%clk 0:00:19]}  Rg8 {[%clk 0:00:06]} 32. Qh6# {[%clk 0:00:19]} 1-0